Cogmind - Beta 13 @@@ ROGUE MODE // 2024.05.01 @ 12:08:51 Player: BionicBot Result: Destroyed self with Grenade Launcher Performance ------------- Evolutions (0) 0 Regions Visited (2) 400 Robots Destroyed (28) 140 Value Destroyed (605) 605 Prototype IDs (0) 0 Alien Tech Used (0) 0 Bonus (17) 17 TOTAL SCORE: 1162 Bonus ------- High Alert Combat Kills 17 Cogmind --------- Core Integrity 0/250 Matter 192/300 Energy 114/125 System Corruption 0% Temperature Cool (9) Movement Core (300) Ox5 Location -10/Mines Parts ------- > --- POWER (1) -------- Light Ion Engine > --- PROPULSION (2) --- (None) > --- UTILITY (2) ------ Improved Heat Sink Medium Storage Unit > --- WEAPON (2) ------- Grenade Launcher > --- INVENTORY (10) --- Light Ion Engine Aluminum Leg Aluminum Leg Aluminum Leg Hover Unit Hover Unit Improved Heat Sink Small Storage Unit Sensor Array Peak State ------------ > --- POWER ------------ Light Ion Engine > --- PROPULSION ------- Aluminum Leg Aluminum Leg > --- UTILITY ---------- Improved Heat Sink Medium Storage Unit > --- WEAPON ----------- Particle Gun Assault Rifle > --- INVENTORY -------- Aluminum Leg Aluminum Leg Aluminum Leg Hover Unit Hover Unit Improved Heat Sink Small Storage Unit Sensor Array Medium Laser Grenade Launcher [Rating: 11] Favorites ----------- Power Light Ion Engine Engine Light Ion Engine Propulsion Aluminum Leg Leg Aluminum Leg Utility Medium Storage Unit Device Improved Heat Sink Storage Medium Storage Unit Weapon Assault Rifle Energy Gun Medium Laser Ballistic Gun Assault Rifle Launcher Grenade Launcher Build | -11 -10 -10 ------- Run | Yrd Mat Min Slots Evolved . | . . . Power . | . . . Propulsion . | . . . Utility . | . . . Weapon . | . . . Parts Attached 19 | 6 10 3 Power 3 | 1 1 1 Engine 3 | 1 1 1 Core . | . . . Reactor . | . . . Propulsion 6 | 2 4 . Treads . | . . . Leg 6 | 2 4 . Wheel . | . . . Hover . | . . . Flight . | . . . Utility 5 | 1 4 . Device 2 | . 2 . Storage 3 | 1 2 . Processor . | . . . Hackware . | . . . Protection . | . . . Artifact . | . . . Weapon 5 | 2 1 2 Energy Gun 2 | 1 1 . Energy Cannon . | . . . Ballistic Gun 1 | 1 . . Ballistic Cannon . | . . . Launcher 2 | . . 2 Special Weapon . | . . . Impact Weapon . | . . . Slashing Weapon . | . . . Piercing Weapon . | . . . Special Melee Weapon . | . . . Unidentified Prototypes . | . . . Parts Lost 6 | . 2 4 Power 1 | . 1 . Propulsion 2 | . . 2 Utility . | . . . Weapon 3 | . 1 2 Highest Loss Streak 4 | . 1 4 To Critical Strikes . | . . . Average Slot Usage (%) 92 | . 89 99 Engine 11 | . 10 14 Leg 28 | . 28 28 Device 11 | . 9 14 Storage 14 | . 14 14 Energy Gun 14 | . 14 14 Ballistic Gun 8 | . 12 . Launcher 4 | . . 13 Naked Turns . | . . . Heaviest Build 20 | 12 18 20 Greatest Support 20 | 20 20 20 Greatest Overweight (x) . | . . . Average Overweight (x) . | . . . Largest Inventory Capacity 10 | 8 10 10 Average Capacity 9 | 6 9 10 Most Carried 10 | . 10 10 Average Carried 6 | . 5 9 Final Capacity 10 | 8 10 10 Final Carried 10 | . 10 9 Class Distribution -------------------- 66% | Mutant 33% | Scavenger-Mutant Dominant Class ---------------- Mutant | -10/Materials Scavenger-Mutant | -10/Mines Resources | -11 -10 -10 ----------- Run | Yrd Mat Min Matter Collected 600 | 260 248 92 Remotely . | . . . Salvage Created 758 | . 561 197 Parts 47 | . 27 20 Haulers Intercepted . | . . . Recyclers Shooed . | . . . Parts Field Recycled . | . . . Retrieved Matter . | . . . Parts Self-Destructed . | . . . Prevented . | . . . Kills | -11 -10 -10 ------- Run | Yrd Mat Min Combat Hostiles Destroyed 21 | . 8 13 Guns 8 | . 7 1 AOE 12 | . . 12 Classes Destroyed 7 | . 5 2 Worker 3 | . 2 1 Builder 1 | . 1 . Recycler 2 | . 2 . Watcher 1 | . 1 . Swarmer 9 | . . 9 Grunt 10 | . 8 2 Sentry 2 | . . 2 Best Kill Streak 5 | . 3 5 Combat Bots Only 5 | . 2 5 Max Kills in Single Turn 3 | . 1 3 Gunslinging . | . . . Exploded 2 | . . 2 Melee . | . . . Uniques/NPCs Destroyed . | . . . Combat | -11 -10 -10 -------- Run | Yrd Mat Min Hostile Shots Fired 108 | . 64 44 Missed 33 | . 19 14 Damage Taken 985 | . 572 413 Core 259 | . 167 92 Absorbed by Shields . | . . . Core Remaining (%) 100 | 100 . . Volleys Fired 94 | . 70 24 Largest 2 | . 2 2 Hottest 95 | . 85 95 Shots Fired 170 | . 129 41 Gun 152 | . 129 23 Cannon . | . . . Launcher 18 | . . 18 Special . | . . . Kinetic 59 | . 59 . Thermal 93 | . 70 23 Explosive 18 | . . 18 Electromagnetic . | . . . Robot Hit Streak 15 | . 15 4 Robot Miss Streak 3 | . 3 3 Penetration Max . | . . . Secondary Targets . | . . . Shots Hit Robots 105 | . 88 17 Core Hits 41 | . 25 16 Critical Kills . | . . . Critical Parts Destroyed . | . . . Critical Strikes 2 | . 1 1 Burn 2 | . 1 1 Melee Attacks . | . . . Impact . | . . . Slashing . | . . . Piercing . | . . . Sneak Attacks . | . . . Combat Hostiles . | . . . Follow-up Attacks . | . . . Damage Inflicted 2034 | . 1103 931 Guns 1218 | . 1092 126 Cannons . | . . . Explosions 805 | . . 805 Melee . | . . . Ramming 11 | . 11 . Kinetic 504 | . 504 . Thermal 714 | . 588 126 Explosive 805 | . . 805 Electromagnetic . | . . . Impact . | . . . Slashing . | . . . Piercing . | . . . Highest Corruption . | . . . Average Corruption . | . . . Corruption Purged . | . . . Corruption Blocked . | . . . Overload Shots . | . . . Overflow Damage 68 | . . 68 Projectiles . | . . . Explosions 68 | . . 68 Melee . | . . . Knockbacks . | . . . Impact . | . . . Kinetic . | . . . Secondary . | . . . Self-Inflicted Damage 90 | . . 90 Shots 5 | . . 5 Rammed . | . . . Targets Rammed 3 | . 3 . Kicked 3 | . 3 . Crushed . | . . . Highest Temperature 264 | . 264 24 Average Temperature 93 | . 105 10 Received Heat Transfer 399 | . 303 96 Siege Activations . | . . . Robots Corrupted . | . . . Combat Hostiles . | . . . Parts Fried . | . . . Impact Corruptions . | . . . Robots Melted 1 | . 1 . Combat Hostiles 1 | . 1 . Parts Melted 4 | . 4 . Heat Transferred 2146 | . 1776 370 Parts Sabotaged . | . . . Parts Stolen . | . . . Parts Stripped . | . . . Power Chain Reactions . | . . . Alert | -11 -10 -10 ------- Run | Yrd Mat Min Peak Influence 519 | . 158 519 Initial 52 | . . 52 Average 135 | . 85 265 Maximum Alert Level 2 | . . 2 Low Security (%) 84 | 100 100 49 Level 1 4 | . . 16 Level 2 10 | . . 34 Level 3 . | . . . Level 4 . | . . . Level 5 . | . . . High Security . | . . . Max Security . | . . . Squads Dispatched 2 | . 2 . Investigation . | . . . Extermination . | . . . Reinforcement 2 | . 2 . Assault . | . . . Garrison . | . . . Intercept . | . . . Searches Triggered . | . . . Construction Impeded . | . . . Haulers Reinforced . | . . . Active Scanning Responses . | . . . Cargo Convoy Interrupts . | . . . Stealth | -11 -10 -10 --------- Run | Yrd Mat Min Distress Signals 2 | . 2 . Communications Jammed . | . . . Distress Signals . | . . . Times Spotted 27 | . 13 14 Peak Tracking Total 4 | . 4 4 Tactical Retreats 2 | . 1 1 Traps | -11 -10 -10 ------- Run | Yrd Mat Min Traps Triggered 1 | . 1 . Indirectly . | . . . Trap Hack Attempts . | . . . Triggered . | . . . Disarmed . | . . . Reprogrammed . | . . . Reused . | . . . Traps Extracted . | . . . Installed . | . . . Triggered . | . . . Machines | -11 -10 -10 ---------- Run | Yrd Mat Min Machines Disabled 3 | . . 3 Max in Single Turn 2 | . . 2 Machines Repaired . | . . . Machines Dismantled . | . . . Machines Sabotaged . | . . . Overloaded Fab Kills . | . . . Hacking | -11 -10 -10 --------- Run | Yrd Mat Min Machines Accessed 1 | . 1 . Terminals 1 | . 1 . Fabricators . | . . . Repair Stations . | . . . Recycling Units . | . . . Scanalyzers . | . . . Garrison Access . | . . . Total Hacks 3 | . 3 . Successful 2 | . 2 . Failed 1 | . 1 . Catastrophic . | . . . Database Lockouts . | . . . Manual . | . . . Terminals 3 | . 3 . Fabricators . | . . . Repair Stations . | . . . Recycling Units . | . . . Scanalyzers . | . . . Garrison Access . | . . . Terminal Hacks 2 | . 2 . Branch Access Points 1 | . 1 . Registered Components 1 | . 1 . Fabricator Hacks . | . . . Repair Station Hacks . | . . . Recycling Unit Hacks . | . . . Scanalyzer . | . . . Garrison Access Hacks . | . . . Unauthorized Hacks . | . . . Terminals . | . . . Fabricators . | . . . Repair Stations . | . . . Recycling Units . | . . . Scanalyzers . | . . . Garrison Access . | . . . Data Cores Recovered . | . . . Used . | . . . Hacking Detections 1 | . 1 . Full Trace Events . | . . . Feedback Events . | . . . Feedback Blocked . | . . . Robot Schematics Acquired . | . . . Robots Built . | . . . Authchips . | . . . Time . | . . . Total Robot Build Rating . | . . . Part Schematics Acquired . | . . . Parts Built . | . . . Authchips . | . . . Time . | . . . Total Part Build Rating . | . . . Parts Repaired . | . . . Time . | . . . Parts Recycled . | . . . Recycled Matter . | . . . Retrieved Matter . | . . . Retrieved Components . | . . . Parts Scanalyzed . | . . . Part Schematics Acquired . | . . . Parts Damaged . | . . . Bothacking | -11 -10 -10 ------------ Run | Yrd Mat Min Used RIF Installer . | . . . Robots Hacked . | . . . Non-combat . | . . . Combat . | . . . Robot Hacks Applied . | . . . Relay Couplers Released . | . . . Fabnet Peak Effective % . | . . . Robots Rewired . | . . . Allies Hacked . | . . . Hacks Repelled . | . . . Allies | -11 -10 -10 -------- Run | Yrd Mat Min Total Allies . | . . . Largest Group . | . . . Highest-Rated Group . | . . . Highest-Rated Ally . | . . . Total Orders . | . . . Ally Attacks . | . . . Total Damage . | . . . Kills . | . . . Allies Corrupted . | . . . Allies Melted . | . . . Intel | -11 -10 -10 ------- Run | Yrd Mat Min Robot Analysis Total . | . . . Derelict Logs Recovered . | . . . Drone Launches . | . . . Drone Recoveries . | . . . Exploration | -11 -10 -10 ------------- Run | Yrd Mat Min Turns Passed 1151 | 41 766 344 Spaces Moved 659 | 31 406 222 Core 6 | 6 . . Treads . | . . . Legs 653 | 25 406 222 Wheels . | . . . Hover . | . . . Flight . | . . . Fastest Speed 50 | 50 120 120 Average Speed 119 | 106 120 120 Slowest Speed 120 | 120 120 120 Overloaded Moves . | . . . Propulsion Burnouts . | . . . Robots Hopped . | . . . Cave-ins Triggered . | . . . Exploration Rate (%) 35 | 3 45 58 Regions Visited 2 Branch Regions 1 Pre-discovered Areas . | . . . Known Exits Taken 1 | . 1 . Unknown Exits Taken 1 | 1 . . Scrap Searched . | . . . Spaces Dug . | . . . Terrain Destroyed 122 | . . 122 Melee . | . . . Projectile . | . . . AOE 122 | . . 122 Terrain Rammed . | . . . Walls Destroyed . | . . . Machines Disabled . | . . . Actions | -11 -10 -10 --------- Run | Yrd Mat Min Total 850 | 36 554 260 Wait 65 | . 54 11 Move 657 | 30 405 222 Hop . | . . . Pick Up 7 | . 7 . Fast Attach 8 | 6 2 . Attach 3 | . 1 2 Detach 1 | . 1 . Swap 8 | . 7 1 Drop 4 | . 4 . Fire 94 | . 70 24 Melee . | . . . Ram . | . . . Kick 3 | . 3 . Crush . | . . . Escape Stasis . | . . . Rewire . | . . . Trap . | . . . Miscellaneous . | . . . Route ------- -11/Scrapyard -10/Materials -10/Mines History --------- Turn | Location | Event 5 | -11/Scrapyard | Discovered new exit (range 15) 42 | -11/Scrapyard | Entered Materials 311 | -10/Materials | Build established: Mutant 576 | -10/Materials | Identified exit to Mines 613 | -10/Materials | Core integrity fell below 50% 808 | -10/Materials | Entered Mines 1005 | -10/Mines | Core integrity fell below 20% 1048 | -10/Mines | Joined a pair of Derelicts in attacking an 0b10 outpost 1057 | -10/Mines | Build established: Scavenger-Mutant 1152 | -10/Mines | Destroyed self with Grenade Launcher Last Messages --------------- 01070_ The unstable cave ceiling collapses. 01075_ U-05 Engineer builds a Wall. 01088_ S-10 Pest destroyed. 01091_ U-05 Engineer builds a Wall. 01091_ S-10 Pest destroyed. 01095_ U-05 Engineer builds a Wall. 01100_ U-05 Engineer lays Concrete. 01102_ Acquired 10 matter. 01102_ U-05 Engineer lays Concrete. 01103_ The unstable cave ceiling collapses. 01103_ U-05 Engineer lays Concrete. 01113_ The unstable cave ceiling collapses. 01142_ G-34 Mercenary suffers critical hit (Burn). 01142_ Grenade Launcher destroyed. 01142_ Destroyed Grenade Launcher. 01150_ Particle Gun destroyed. 01152_ Aluminum Leg destroyed. 01152_ Destroyed Aluminum Leg. 01152_ Aluminum Leg destroyed. 01152_ Destroyed Aluminum Leg. Map ----- +----------------------------------------------------+ | | | | | | | | | ?????????????????????????????????? | | ?????????????????????????????????? | | ?????????????????????????????????? | | ?????????????????????????????????? | | ?????????????????????????????????? | | ?????????????????????????????????? | | ?????????????????????????????????? | | ?????????????????????????????????? | | ??????????????????????????##?????? | | ??????????????????????????? ##???? | | ??????????????????????????? ##??? | | ?????????????????????##???? ##?? | | ????????????????????# ???? #?? | | ???????????????????? ???? #?? | | ???????????????????? ???? #?? | | ????????????????????# ????# #?? | | ????????????????????# #???## #?? | | ????????????????????# #??## #?? | | ????????????????????# #?## #?? | | ?????????#### ####?## ### ##?? | | ?????? ## ##??? | | ?????? $ g@ #???? | | ?????????????#### # g ##???? | | ????????????????# #????? | | ???????????????# = #????? | | ??????????????# * ##????? | | ????????????### #*# ##?????? | | ????????????# #######??????? | | ????????????# # ##???????????? | | ????????????#?#### ##??????????? | | ?????????????????# ##?????????? | | ?????????????????# #?????????? | | ?????????????????## #?????????? | | ??????????????????## ##????????? | | ??????????????####### ##???????? | | ????????????#?# ## ##??????? | | ????######### # ## ## #??????? | | #???? # = ## #??????? | | #???????????# [![!! # #####??? | | #???????????# !/= ]# #??? | | ###?????????# # [ ###?? | | #?????????# ### ## #?? | | #?????##### = #?? | | # #????## ## # #?? | | ? ?????# # #########?? | | ? ?????# #####????? | +----------------------------------------------------+ Best States ------------- Heat Dissipation 39 Energy Generation 10 Energy Capacity 125 Matter Stores 300 Matter Capacity 300 Sight Range 16 Terrain Scan Density 10 Evasion (%) 55 Item Schematics ----------------- None Robot Schematics ------------------ None Fabricated ------------ Nothing Alien Tech Used ----------------- None Achievements -------------- None Challenges ------------ None Game ------ Seed GlidesysDamperScreen Manual? 0 Play Time 00:11:43 Cumulative 21.7 hours Start 2024.05.01 @ 11:59:53 End 2024.05.01 @ 12:08:51 Sessions 1 Manual Loads 0 Difficulty Rogue Special Mode None Game No. 20 Rogue 20 Adventurer 0 Explorer 0 Win Type - Total 0 Types 0/0/0/0/0/0/0/0/0 Lore% 4 Gallery% 21 Achievement% 17 Wizard Run 0 Options --------- Layout 0 ASCII 0 Keyboard 1 Movement Numpad Keybinds 0 Fullscreen 2 Font 18/SmallcapsGlow Map View 76x50 Zoom Use 0% Tactical HUD 1 Map Filters NONE Filters NONE Steam 1 RUN: 01480704-3067-45ae-a01e-dee7ede6ec9f